bitfinex/quotes_SOLUSD_20250406
["timestamp","ask_amount","ask_price","bid_price","bid_amount"]
[1743903211095,106.75404886,120.91,120.9,0.03]
[1743903218321,112.54344886,120.91,120.9,0.03]
[1743903223231,112.60644886,120.91,120.9,0.03]
[1743903226536,100.51264886,120.91,120.9,0.03]
[1743903226715,0.063,120.91,120.9,16.65900751]
[1743903229730,18.71264886,120.91,120.9,0.03]
[1743903229931,24.50204886,120.91,120.9,0.03]
[1743903235129,41.13105637,120.91,120.9,0.03]
[1743903236541,24.50204886,120.91,120.9,0.03]
[1743903237137,18.71264886,120.91,120.9,0.03]
[1743903238319,24.50204886,120.91,120.9,0.03]
[1743903240252,18.71264886,120.91,120.9,0.03]
[1743903243751,0.063,120.91,120.9,16.65900751]
[1743903244651,18.71264886,120.91,120.9,0.03]
[1743903245855,35.34165637,120.91,120.9,0.03]
[1743903246859,41.13105637,120.91,120.9,0.03]
[1743903249658,24.50204886,120.91,120.9,0.03]
[1743903250752,18.71264886,120.91,120.9,0.03]
[1743903252663,0.063,120.91,120.9,16.65900751]
[1743903252972,0.063,120.91,120.9,18.22890751]
[1743903254872,0.063,120.91,120.9,20.29819608]
[1743903255656,18.71264886,120.91,120.9,2.09928857]
[1743903263789,41.13105637,120.91,120.9,2.09928857]
[1743903263958,41.41537951,120.91,120.9,2.09928857]
[1743903265347,0.063,120.91,120.9,2.09928857]
[1743903276077,24.50204886,120.91,120.9,2.09928857]
[1743903276675,41.13105637,120.91,120.9,2.09928857]
[1743903279082,41.41537951,120.91,120.9,2.09928857]
[1743903279988,41.55754108,120.91,120.9,2.09928857]
[1743903283694,41.55754108,120.91,120.9,0.03]
[1743903284383,69.64484108,120.91,120.9,0.03]
[1743903286486,0.28432314,120.9,120.88,0.063]
[1743903286793,109.01684798,120.89,120.88,0.063]
[1743903287104,124.30081794,120.89,120.88,0.063]
[1743903287274,124.30081794,120.89,120.84,0.063]
[1743903287275,0.14216157,120.87,120.84,0.063]
[1743903287589,35.56297951,120.85,120.84,0.063]
[1743903288880,41.35527951,120.85,120.84,0.063]
[1743903289692,18.64964886,120.85,120.84,0.063]
[1743903289897,35.27865637,120.85,120.84,0.063]
[1743903290492,41.07095637,120.85,120.84,0.063]
[1743903290678,35.27865637,120.85,120.84,0.063]
[1743903291792,41.07095637,120.85,120.84,0.063]
[1743903292173,41.35527951,120.85,120.84,0.063]
[1743903292595,18.64964886,120.85,120.84,0.063]
[1743903298794,41.07095637,120.85,120.84,0.063]
[1743903301197,41.35527951,120.85,120.84,0.063]
[1743903312779,68.55744108,120.85,120.84,0.063]
[1743903312978,0.42648471,120.84,120.78,0.063]
[1743903313178,18.64964886,120.79,120.78,0.063]
[1743903313397,16.62900751,120.79,120.76,26.0]
[1743903313887,18.64964886,120.78,120.76,26.0]
[1743903317807,24.44534886,120.78,120.76,26.0]
[1743903319000,18.64964886,120.77,120.76,26.0]
[1743903319205,24.44574886,120.77,120.75,1.6476]
[1743903319517,24.44574886,120.77,120.75,0.063]
[1743903319814,41.07475637,120.77,120.75,0.063]
[1743903323313,41.07525637,120.76,120.75,0.063]
[1743903324106,122.87525637,120.76,120.75,0.063]
[1743903324810,100.44964886,120.76,120.75,0.063]
[1743903335627,106.24624886,120.76,120.75,0.063]
[1743903336625,122.87525637,120.76,120.75,0.063]
[1743903336825,129.67004108,120.76,120.75,0.063]
[1743903337132,54.93004108,120.76,120.75,0.063]
[1743903339834,59.04731103,120.76,120.75,0.063]
[1743903341113,54.93004108,120.76,120.75,0.063]
[1743903342731,79.79004108,120.76,120.75,0.063]
[1743903343232,273.75004108,120.76,120.75,0.063]
[1743903344432,277.93944505,120.76,120.75,0.063]
[1743903344641,20.0,120.74,120.73,0.063]
[1743903344934,55.56297951,120.74,120.73,0.063]
[1743903345840,61.36047951,120.74,120.73,0.063]
[1743903349324,18.933972,120.73,120.72,0.063]
[1743903349522,35.56297951,120.73,120.72,0.063]
[1743903349818,41.50314108,120.73,120.72,0.063]
[1743903353735,20.0,120.72,120.71,0.063]
[1743903354037,18.933972,120.71,120.7,0.063]
[1743903354219,35.56297951,120.71,120.7,0.063]
[1743903355038,41.36197951,120.71,120.7,0.063]
[1743903361363,24.732972,120.71,120.7,0.063]
[1743903361650,35.27865637,120.71,120.7,0.063]
[1743903362145,18.64964886,120.71,120.7,0.063]
[1743903362925,16.62900751,120.72,120.7,0.063]
[1743903362926,18.64964886,120.72,120.7,16.69200751]
[1743903363439,35.27865637,120.72,120.7,0.063]
[1743903363854,41.07725637,120.72,120.7,0.063]
[1743903364048,16.62900751,120.71,120.7,0.063]
[1743903365633,41.50414108,120.71,120.7,0.063]
[1743903367646,24.87513357,120.71,120.7,0.063]
[1743903367955,41.50414108,120.71,120.7,0.063]
[1743903368153,18.933972,120.7,120.69,0.063]
[1743903368352,35.27865637,120.66,120.62,0.03]
[1743903368656,16.62900751,120.65,120.62,0.03]
[1743903369150,35.27865637,120.66,120.62,0.03]
[1743903369349,16.62900751,120.65,120.62,0.03]
[1743903370147,100.44964886,120.64,120.62,0.03]
[1743903370349,35.27865637,120.63,120.62,0.03]
[1743903370543,42.33865637,120.63,120.62,0.03]
[1743903371244,42.62297951,120.63,120.62,0.03]
[1743903371846,42.33865637,120.63,120.62,0.03]
[1743903372051,42.62297951,120.63,120.62,0.03]
[1743903372240,48.42577951,120.63,120.62,0.03]
[1743903372750,42.33865637,120.63,120.62,0.03]
[1743903372950,25.70964886,120.63,120.62,0.03]
[1743903373253,18.64964886,120.63,120.62,0.03]
[1743903375452,35.27865637,120.63,120.62,0.03]
[1743903376378,41.36577951,120.63,120.62,0.03]
[1743903378349,41.50794108,120.63,120.62,0.03]
[1743903380461,18.64964886,120.63,120.62,0.03]
[1743903381459,35.27865637,120.63,120.62,0.03]
[1743903381757,41.36577951,120.63,120.62,0.03]
[1743903385056,41.50794108,120.63,120.62,0.03]
[1743903385238,61.50794108,120.63,120.62,0.03]
[1743903385538,41.50794108,120.63,120.62,0.03]
[1743903385935,41.36577951,120.63,120.62,0.03]
[1743903386371,35.56297951,120.63,120.62,0.03]
[1743903387448,41.36577951,120.63,120.62,0.03]
[1743903391264,35.27865637,120.63,120.62,0.03]
[1743903391444,18.64964886,120.63,120.62,0.03]
[1743903393047,35.56297951,120.63,120.62,0.03]
[1743903393251,41.36577951,120.63,120.62,0.03]
[1743903397274,35.27865637,120.63,120.62,0.03]
[1743903398887,41.36577951,120.63,120.62,0.03]
[1743903399267,18.64964886,120.63,120.62,0.03]
[1743903400779,35.27865637,120.63,120.62,0.03]
[1743903401181,41.08145637,120.63,120.62,0.03]
[1743903401365,41.36577951,120.63,120.62,0.03]
[1743903404077,35.27865637,120.63,120.62,0.03]
[1743903404589,18.64964886,120.63,120.62,0.03]
[1743903405572,41.08145637,120.63,120.62,0.03]
[1743903407182,35.27865637,120.63,120.62,0.03]
[1743903407475,18.64964886,120.63,120.62,0.03]
[1743903408585,35.27865637,120.63,120.62,0.03]
[1743903409282,18.64964886,120.63,120.62,0.03]
[1743903413291,24.45244886,120.63,120.62,0.03]
[1743903413596,41.08145637,120.63,120.62,0.03]
[1743903414301,41.36577951,120.63,120.62,0.03]
[1743903420392,35.56297951,120.63,120.62,0.03]
[1743903420894,18.64964886,120.63,120.62,0.03]
[1743903422896,18.64964886,120.63,120.62,3.09297565]
[1743903425005,35.27865637,120.63,120.62,3.09297565]
[1743903425589,41.36577951,120.63,120.62,0.03]
[1743903427302,18.64964886,120.63,120.62,0.03]
[1743903427690,41.08145637,120.63,120.62,0.03]
[1743903428688,35.27865637,120.63,120.62,0.03]
[1743903429707,24.45244886,120.63,120.62,0.03]
[1743903430012,41.08145637,120.63,120.62,0.03]
[1743903431683,24.45244886,120.63,120.62,0.03]
[1743903432105,18.64964886,120.63,120.62,0.03]
[1743903433012,18.64964886,120.63,120.62,3.09128091]
[1743903437215,41.08145637,120.63,120.62,3.09128091]
[1743903437517,41.36577951,120.63,120.62,3.09128091]
[1743903438014,41.36577951,120.63,120.62,0.03]
[1743903440319,41.50794108,120.63,120.62,0.03]
[1743903441002,69.57714108,120.63,120.62,0.03]
[1743903441810,35.42081794,120.61,120.6,0.03]
[1743903442000,42.48081794,120.61,120.6,0.03]
[1743903442201,68.56894108,120.61,120.6,0.03]
[1743903448026,262.76894108,120.61,120.6,0.03]
[1743903448728,242.76894108,120.61,120.6,0.03]
[1743903453337,229.47865637,120.61,120.6,0.03]
[1743903453911,194.2,120.61,120.6,0.03]
[1743903454109,212.84964886,120.61,120.6,0.03]
[1743903454310,235.28245637,120.61,120.6,0.03]
[1743903458541,0.14216157,120.59,120.57,0.03]
[1743903458718,42.62297951,120.58,120.57,0.03]
[1743903459238,16.62900751,120.56,120.53,1.54]
[1743903459641,18.64964886,120.55,120.53,1.54]
[1743903460739,24.45644886,120.55,120.53,1.54]
[1743903460935,18.64964886,120.53,120.49,14.40128125]
[1743903461237,16.62900751,120.51,120.49,0.03]
[1743903461442,16.62900751,120.5,120.49,0.03]
[1743903461634,35.27865637,120.5,120.49,0.03]
[1743903462436,18.64964886,120.5,120.49,0.03]
[1743903463341,35.27865637,120.5,120.49,0.03]
[1743903464221,41.08775637,120.5,120.49,0.03]
[1743903465226,48.43207951,120.5,120.49,0.03]
[1743903465422,48.57424108,120.5,120.49,0.03]
[1743903467338,68.57424108,120.5,120.49,0.03]
[1743903467639,51.94523357,120.5,120.49,0.03]
[1743903467839,78.10780651,120.5,120.49,0.03]
[1743903468946,0.14216157,120.48,120.47,0.03]
[1743903469127,44.95438337,120.48,120.47,0.03]
[1743903469520,45.09654494,120.48,120.47,0.03]
[1743903470827,50.90654494,120.48,120.47,0.03]
[1743903472147,18.64964886,120.48,120.47,0.03]
[1743903472825,44.8122218,120.48,120.47,0.03]
[1743903475044,50.90654494,120.48,120.47,0.03]
[1743903478553,51.04870651,120.48,120.47,0.03]
[1743903480352,245.44870651,120.48,120.47,0.03]
[1743903481631,213.04964886,120.48,120.47,0.03]
[1743903481831,194.4,120.48,120.47,0.03]
[1743903482057,213.04964886,120.48,120.47,26.19257294]
[1743903483445,194.4,120.48,120.47,26.19257294]
[1743903483755,18.64964886,120.52,120.47,34.07657294]
[1743903483955,18.64964886,120.52,120.48,26.16257294]
[1743903485054,44.8122218,120.52,120.48,26.16257294]
[1743903487763,18.64964886,120.52,120.48,16.72804049]
[1743903488063,16.72804049,120.51,120.47,18.29744049]
[1743903488256,16.72804049,120.5,120.47,1.5694]
[1743903488463,16.72804049,120.5,120.47,0.03]
[1743903489038,18.64964886,120.49,120.47,0.03]
[1743903490742,16.72804049,120.51,120.47,0.03]
[1743903492847,18.64964886,120.52,120.48,16.72804049]
[1743903493364,0.063,120.49,120.48,16.72804049]
[1743903499178,0.063,120.49,120.48,18.44970206]
[1743903499372,194.4,120.55,120.49,6.14696157]
[1743903499542,18.64964886,120.54,120.53,16.72804049]
[1743903499967,18.64964886,120.54,120.52,16.72804049]
[1743903501479,18.64964886,120.54,120.5,16.72804049]
[1743903501766,18.64964886,120.54,120.5,26.12715502]
[1743903503871,18.64964886,120.54,120.51,26.12715502]
[1743903504980,18.64964886,120.54,120.49,6.14696157]
[1743903505161,18.64964886,120.54,120.51,26.12715502]
[1743903506980,18.71264886,120.54,120.51,26.12715502]
[1743903512975,18.71264886,120.54,120.52,26.12715502]
[1743903513172,0.063,120.54,120.53,26.12715502]
[1743903514083,0.063,120.54,120.52,26.12715502]
[1743903515090,18.71264886,120.54,120.51,26.12715502]
[1743903515582,0.063,120.54,120.51,26.12715502]
[1743903518781,0.063,120.54,120.5,7.06]
[1743903518992,0.063,120.54,120.51,29.17907322]
[1743903519289,0.063,120.54,120.51,3.0519182]
[1743903519590,0.063,120.54,120.51,29.17907322]
[1743903519795,0.063,120.54,120.51,26.12715502]
[1743903520696,0.063,120.54,120.52,3.05759859]
[1743903521472,0.063,120.54,120.51,26.12715502]
[1743903521668,0.063,120.54,120.51,16.71762365]
[1743903533014,0.063,120.54,120.53,16.71762365]
[1743903534581,0.063,120.54,120.52,16.71762365]
[1743903542396,0.063,120.54,120.53,16.71762365]
[1743903544406,0.063,120.54,120.51,26.0]
[1743903544594,0.063,120.54,120.53,16.71762365]
[1743903550125,0.063,120.54,120.52,16.71762365]
[1743903550322,0.063,120.54,120.51,42.71762365]
[1743903550707,0.063,120.54,120.52,42.71762365]
[1743903551925,0.063,120.54,120.53,16.71762365]
[1743903553631,0.063,120.54,120.52,42.71762365]
[1743903555135,0.063,120.54,120.52,26.0]
[1743903555337,0.063,120.54,120.52,42.71762365]
[1743903560130,0.063,120.54,120.52,26.0]
[1743903560329,0.063,120.54,120.52,42.71762365]
[1743903560849,0.063,120.54,120.49,0.17216157]
[1743903561018,0.063,120.54,120.51,16.71762365]
[1743903561222,0.063,120.54,120.52,26.0]
[1743903562147,0.063,120.54,120.5,16.71762365]
[1743903562442,35.43027251,120.54,120.5,16.71762365]
[1743903564063,41.23757251,120.54,120.5,16.71762365]
[1743903567513,18.71264886,120.54,120.51,16.71762365]
[1743903567719,18.71264886,120.54,120.52,16.71762365]
[1743903570325,18.71264886,120.54,120.5,26.0]
[1743903570641,18.71264886,120.54,120.51,16.71762365]
[1743903571145,18.71264886,120.54,120.5,26.0]
[1743903571322,18.71264886,120.54,120.51,16.71762365]
[1743903577048,18.71264886,120.54,120.5,26.0]
[1743903577234,18.71264886,120.54,120.51,16.71762365]
[1743903577439,0.063,120.54,120.51,16.71762365]
[1743903582936,18.71264886,120.54,120.51,16.71762365]
[1743903583666,18.71264886,120.54,120.52,16.71762365]
[1743903584067,0.063,120.54,120.53,16.71762365]
[1743903587767,0.063,120.54,120.51,16.71762365]
[1743903587948,0.063,120.54,120.53,26.0]
[1743903593271,0.063,120.54,120.52,16.71762365]
[1743903593272,18.64964886,120.53,120.5,16.71762365]
[1743903598774,18.64964886,120.53,120.51,16.71762365]
[1743903598948,18.64964886,120.53,120.52,16.71762365]
[1743903599455,18.64964886,120.53,120.51,16.71762365]
[1743903600774,6.5248,120.54,120.51,16.71762365]
[1743903600968,6.5248,120.54,120.52,16.71762365]
[1743903601472,6.5248,120.54,120.51,16.71762365]
[1743903602776,0.063,120.54,120.52,16.71762365]
[1743903605776,0.063,120.54,120.53,16.71762365]
[1743903607474,0.063,120.54,120.53,16.85978522]
[1743903607773,0.063,120.54,120.53,17.14410836]
[1743903613079,0.063,120.54,120.53,0.14216157]
[1743903613289,0.063,120.54,120.53,16.85978522]
[1743903613772,0.063,120.54,120.53,42.71762365]
[1743903614161,0.063,120.54,120.52,16.71762365]
[1743903615577,0.063,120.54,120.5,7.06]
[1743903615786,0.063,120.54,120.51,16.71762365]
[1743903621884,0.063,120.54,120.52,16.71762365]
[1743903624493,0.063,120.54,120.5,7.06]
[1743903624675,0.063,120.54,120.51,16.71762365]
[1743903624989,0.063,120.54,120.51,26.0]
[1743903625201,0.063,120.54,120.51,42.71762365]
[1743903626894,0.063,120.54,120.51,26.0]
[1743903627279,16.78062365,120.54,120.49,26.03]
[1743903627487,18.64964886,120.53,120.5,26.0]
[1743903627992,20.23924886,120.53,120.49,16.74762365]
[1743903628305,6.0532,120.52,120.49,0.03]
[1743903628671,22.77082365,120.52,120.49,26.03]
[1743903628992,28.57902365,120.52,120.49,26.03]
[1743903633700,11.8614,120.52,120.49,26.03]
[1743903636709,6.0532,120.52,120.49,26.03]
[1743903638304,6.0532,120.52,120.49,0.03]
[1743903638797,16.71762365,120.5,120.49,0.03]
[1743903638982,18.64964886,120.49,120.48,0.03]
[1743903641801,49.07857251,120.49,120.48,0.03]
[1743903642001,49.36289565,120.49,120.48,0.03]
[1743903642208,49.50505722,120.49,120.48,0.03]
[1743903643310,49.50505722,120.49,120.47,0.03]
[1743903643311,18.933972,120.48,120.47,0.03]
[1743903643617,35.65159565,120.48,120.47,0.03]
[1743903644152,48.03915722,120.48,120.47,0.03]
[1743903644313,0.14216157,120.45,120.36,1.5802]
[1743903644513,18.64964886,120.42,120.38,16.71762365]
[1743903645210,18.64964886,120.4,120.36,0.03]
[1743903645509,35.36727251,120.4,120.36,16.74762365]
[1743903646123,18.64964886,120.4,120.36,26.03]
[1743903646409,18.64964886,120.4,120.36,42.74762365]
[1743903646781,18.64964886,120.4,120.36,16.74762365]
[1743903647389,18.64964886,120.4,120.36,0.03]
[1743903647390,41.18127251,120.4,120.36,0.03]
[1743903647695,35.36727251,120.4,120.36,0.03]
[1743903647994,18.64964886,120.4,120.36,16.74762365]
[1743903648203,18.64964886,120.4,120.36,42.74762365]
[1743903648514,18.64964886,120.41,120.39,16.71762365]
[1743903651815,194.4,120.42,120.39,16.71762365]
[1743903652022,194.4,120.42,120.4,16.71762365]
[1743903652709,194.4,120.42,120.37,7.06]
[1743903652896,194.4,120.42,120.39,16.71762365]
[1743903653931,194.4,120.42,120.37,7.06]
[1743903654097,194.4,120.42,120.39,16.71762365]
[1743903655597,194.4,120.42,120.4,16.71762365]
[1743903655898,194.4,120.42,120.41,16.71762365]
[1743903657313,194.4,120.42,120.4,42.71762365]
[1743903657621,194.4,120.42,120.4,26.0]
[1743903659335,194.4,120.42,120.4,42.71762365]
[1743903659620,194.4,120.42,120.39,16.71762365]
[1743903659922,194.4,120.42,120.38,16.71762365]
[1743903660506,18.64964886,120.41,120.38,16.71762365]
[1743903661022,18.64964886,120.41,120.36,0.03]
[1743903661210,18.64964886,120.41,120.37,16.71762365]
[1743903661804,18.64964886,120.41,120.36,0.03]
[1743903661805,18.64964886,120.41,120.38,16.71762365]
[1743903663622,24.46324886,120.41,120.38,16.71762365]
[1743903664324,18.64964886,120.41,120.38,16.71762365]
[1743903665009,24.46324886,120.41,120.38,16.71762365]
[1743903665517,24.46324886,120.41,120.37,16.71762365]
[1743903668037,24.46324886,120.41,120.36,26.03]
[1743903668418,24.46324886,120.41,120.37,16.71762365]
[1743903675537,24.46324886,120.41,120.37,16.74762365]
[1743903680044,24.46324886,120.41,120.37,0.03]
[1743903680045,18.64964886,120.39,120.37,0.03]
[1743903681245,24.46424886,120.39,120.37,0.03]
[1743903682136,18.64964886,120.39,120.37,0.03]
[1743903683344,24.46404886,120.39,120.37,0.03]
[1743903683717,18.64964886,120.39,120.37,0.03]
[1743903686136,24.46414886,120.39,120.37,0.03]
[1743903686629,18.64964886,120.39,120.37,0.03]
[1743903687847,24.46414886,120.39,120.37,0.03]
[1743903689525,18.64964886,120.39,120.37,0.03]
[1743903703338,24.46404886,120.39,120.37,0.03]
[1743903703653,18.64964886,120.39,120.37,0.03]
[1743903704351,24.46404886,120.39,120.37,0.03]
[1743903705557,41.18167251,120.39,120.37,0.03]
[1743903712837,40.18167251,120.39,120.37,0.03]
[1743903716470,253.5255518,120.43,120.38,16.71762365]
[1743903716471,240.0088518,120.43,120.38,16.71762365]
[1743903716682,18.64964886,120.42,120.4,16.71762365]
[1743903721575,18.64964886,120.42,120.41,16.71762365]
[1743903722366,194.52,120.43,120.41,16.71762365]
[1743903727948,18.64964886,120.44,120.41,16.71762365]
[1743903728450,18.64964886,120.44,120.42,16.71762365]
[1743903730372,18.64964886,120.44,120.41,16.71762365]
[1743903731962,18.71264886,120.44,120.41,16.71762365]
[1743903736461,16.78062365,120.44,120.39,26.03]
[1743903736659,16.78062365,120.44,120.39,42.74762365]
[1743903737685,22.59272365,120.44,120.4,16.71762365]
[1743903739385,22.59272365,120.44,120.39,16.74762365]
[1743903750188,18.64964886,120.43,120.39,16.74762365]
[1743903750398,20.16254886,120.43,120.39,16.74762365]
[1743903750710,18.64964886,120.41,120.39,16.74762365]
[1743903751589,18.64964886,120.41,120.39,0.03]
[1743903755881,35.36727251,120.4,120.39,0.03]
[1743903758602,41.18117251,120.4,120.39,0.03]
[1743903769218,48.24117251,120.4,120.39,0.03]
[1743903771704,48.66765722,120.4,120.39,0.03]
[1743903772004,48.73065722,120.4,120.39,0.03]
[1743903773317,48.30417251,120.4,120.39,0.03]
[1743903775915,35.43027251,120.4,120.39,0.03]
[1743903776107,0.063,120.4,120.39,16.74762365]
[1743903777701,0.063,120.4,120.39,0.03]
[1743903788216,35.57243408,120.4,120.39,0.03]
[1743903788421,41.67065722,120.4,120.39,0.03]
[1743903788733,61.67065722,120.4,120.39,0.03]
[1743903789633,86.62065722,120.4,120.39,0.03]
[1743903790235,61.67065722,120.4,120.39,0.03]
[1743903798422,103.33828087,120.4,120.39,0.03]
[1743903798749,153.49115182,120.4,120.39,0.03]
[1743903800150,16.71762365,120.37,120.32,16.71762365]
[1743903800324,18.64964886,120.36,120.33,16.71762365]
[1743903800524,29.59252365,120.38,120.33,16.71762365]
[1743903800729,35.36727251,120.37,120.32,16.71762365]
[1743903802060,16.71762365,120.36,120.32,16.71762365]
[1743903802238,35.36727251,120.37,120.32,16.71762365]
[1743903802848,5.8158,120.36,120.32,16.71762365]
[1743903803546,18.64964886,120.35,120.31,16.71762365]
[1743903804450,18.64964886,120.35,120.3,1.5594]
[1743903804451,18.64964886,120.34,120.3,1.5594]
[1743903804629,18.64964886,120.34,120.3,18.27702365]
[1743903805251,18.64964886,120.34,120.31,16.71762365]
[1743903805962,18.64964886,120.35,120.31,16.71762365]
[1743903808964,18.64964886,120.35,120.31,16.21762365]
[1743903810735,18.64964886,120.35,120.31,16.24762365]
[1743903812660,22.96772365,120.37,120.32,16.71762365]
[1743903812962,18.64964886,120.36,120.34,16.71762365]
[1743903813165,18.64964886,120.37,120.34,16.71762365]
[1743903813760,18.64964886,120.37,120.31,0.03]
[1743903814277,24.46514886,120.37,120.31,0.03]
[1743903814566,41.18277251,120.37,120.32,16.71762365]
[1743903815759,35.36727251,120.37,120.33,16.71762365]
[1743903817867,35.36727251,120.37,120.32,16.71762365]
[1743903817868,41.18267251,120.37,120.32,16.71762365]
[1743903818556,41.18267251,120.37,120.35,16.71762365]
[1743903818557,18.64964886,120.37,120.35,16.71762365]
[1743903819061,18.64964886,120.37,120.34,16.71762365]
[1743903819575,18.64964886,120.37,120.33,16.71762365]
[1743903821071,18.64964886,120.37,120.32,42.71762365]
[1743903821572,18.64964886,120.37,120.33,16.71762365]
[1743903821750,18.64964886,120.37,120.32,42.71762365]
[1743903822367,18.64964886,120.37,120.33,16.71762365]
[1743903822770,18.64964886,120.37,120.32,42.71762365]
[1743903823848,18.71264886,120.37,120.32,42.71762365]
[1743903824457,35.43027251,120.37,120.32,42.71762365]
[1743903825475,18.71264886,120.37,120.32,42.71762365]
[1743903826361,18.71264886,120.37,120.33,16.71762365]
[1743903827391,0.063,120.37,120.34,16.71762365]
[1743903833603,35.36727251,120.36,120.32,26.0]
[1743903833764,18.64964886,120.36,120.32,26.0]
[1743903833960,18.64964886,120.36,120.32,42.71762365]
[1743903834294,0.063,120.37,120.33,16.71762365]
[1743903834579,16.78062365,120.37,120.32,42.71762365]
[1743903841694,18.71264886,120.37,120.33,16.71762365]
[1743903842179,18.71264886,120.37,120.32,26.0]
[1743903842180,35.43027251,120.37,120.32,26.0]
[1743903842382,16.78062365,120.37,120.32,42.71762365]
[1743903842682,16.78062365,120.37,120.33,16.71762365]
[1743903843393,16.78062365,120.37,120.32,26.0]
[1743903843592,16.78062365,120.37,120.33,16.71762365]
[1743903843886,16.78062365,120.37,120.32,42.71762365]
[1743903846291,16.78062365,120.37,120.33,16.71762365]
[1743903848597,18.71264886,120.37,120.33,16.71762365]
[1743903853095,16.78062365,120.37,120.33,16.71762365]
[1743903853486,0.063,120.37,120.33,16.71762365]
[1743903854479,1.6279,120.37,120.33,16.71762365]
[1743903854796,18.34552365,120.37,120.33,16.71762365]
[1743903858507,1.6279,120.37,120.33,16.71762365]
[1743903864407,6.2157,120.36,120.32,16.71762365]
[1743903864617,18.64964886,120.35,120.32,16.71762365]
[1743903865806,18.64964886,120.35,120.33,16.71762365]
[1743903869012,18.64964886,120.35,120.31,0.03]
[1743903869310,18.64964886,120.35,120.32,16.71762365]
[1743903870111,18.64964886,120.35,120.31,0.03]
[1743903870317,18.64964886,120.35,120.32,16.71762365]
[1743903872428,6.2157,120.36,120.33,16.71762365]
[1743903873325,6.2157,120.36,120.33,16.46392798]
[1743903878320,6.2157,120.36,120.31,0.03]
[1743903880044,18.64964886,120.35,120.31,0.03]
[1743903880222,18.64964886,120.35,120.32,16.46392798]
[1743903881556,18.64964886,120.35,120.33,16.46392798]
[1743903883755,18.64964886,120.35,120.31,0.03]
[1743903883936,35.11357684,120.35,120.31,0.03]
[1743903884450,18.64964886,120.35,120.32,16.46392798]
[1743903887663,18.64964886,120.35,120.31,16.49392798]
[1743903888530,18.64964886,120.35,120.32,16.46392798]
[1743903889254,18.64964886,120.35,120.33,16.46392798]
[1743903890855,18.64964886,120.35,120.32,16.46392798]
[1743903891235,18.64964886,120.35,120.33,16.46392798]
[1743903897058,18.64964886,120.35,120.31,0.03]
[1743903897263,18.71264886,120.35,120.33,16.46392798]
[1743903900761,18.71264886,120.35,120.32,16.46392798]
[1743903901966,18.71264886,120.35,120.33,16.46392798]
[1743903903157,18.71264886,120.35,120.32,16.46392798]
[1743903904063,18.71264886,120.35,120.33,16.46392798]
[1743903904465,18.71264886,120.35,120.33,16.46466319]
[1743903904847,0.063,120.35,120.33,16.46466319]
[1743903905064,0.063,120.35,120.34,16.46466319]
[1743903905665,0.063,120.35,120.34,16.46247957]
[1743903909167,0.063,120.35,120.34,16.88896428]
[1743903909465,0.063,120.35,120.34,23.94896428]
[1743903916493,0.063,120.37,120.36,26.0]
[1743903916652,0.063,120.37,120.36,42.88896428]
[1743903928499,0.063,120.4,120.36,42.88896428]
[1743903928678,0.063,120.4,120.39,16.46247957]
[1743903928877,0.063,120.4,120.39,16.88896428]
[1743903940428,0.063,120.4,120.39,82.73888256]
[1743903940622,0.063,120.41,120.4,108.31239785]
[1743903941608,0.063,120.41,120.4,42.88896428]
[1743903942605,0.063,120.41,120.4,108.73888256]
[1743903943325,0.063,120.41,120.4,42.88896428]
[1743903950934,0.063,120.41,120.4,108.73888256]
[1743903955242,0.063,120.41,120.4,42.88896428]
[1743903956221,0.063,120.41,120.4,108.73888256]
[1743903957041,0.063,120.41,120.4,42.88896428]
[1743903962643,0.063,120.41,120.4,42.91896428]
[1743903964244,0.063,120.41,120.4,42.49247957]
[1743903966430,0.063,120.41,120.4,16.49247957]
[1743903977155,0.063,120.41,120.4,0.03]
[1743903977362,0.063,120.41,120.4,16.49247957]